bitfinex/quotes_SOLUSD_20241116
["timestamp","ask_amount","ask_price","bid_price","bid_amount"]
[1731785290698,15.7786,216.12,216.06,12.71358554]
[1731785290925,15.7786,216.12,216.06,8.13752497]
[1731785291926,20.4056,216.12,216.05,8.13752497]
[1731785292100,28.54312497,216.12,216.05,8.13752497]
[1731785292300,28.54312497,216.12,216.03,12.76642497]
[1731785293524,28.54312497,216.12,216.03,8.13752497]
[1731785294525,28.54312497,216.12,216.04,4.6287]
[1731785295022,28.54312497,216.12,216.04,12.76622497]
[1731785296123,28.54312497,216.12,216.03,8.13752497]
[1731785297323,28.54312497,216.12,216.03,12.76632497]
[1731785304120,28.54312497,216.12,216.03,8.13752497]
[1731785304532,28.54312497,216.12,216.0,4.6296]
[1731785304711,28.54312497,216.12,216.04,8.13752497]
[1731785305815,28.54312497,216.12,216.04,12.76612497]
[1731785307233,15.7786,216.12,216.07,8.13752497]
[1731785307434,15.7786,216.12,216.09,8.13752497]
[1731785308023,15.7786,216.12,216.08,8.13752497]
[1731785309023,4.6251,216.21,216.11,8.13752497]
[1731785309214,15.5604,216.22,216.17,8.13752497]
[1731785310321,15.5604,216.22,216.18,8.12875057]
[1731785310529,15.5604,216.22,216.19,8.12875057]
[1731785310717,15.5604,216.22,216.2,8.12875057]
[1731785311114,15.5604,216.22,216.19,8.12875057]
[1731785312938,15.5604,216.22,216.19,7.62875057]
[1731785314218,15.5604,216.22,216.09,43.776884]
[1731785314426,20.1853,216.22,216.14,8.12875057]
[1731785314628,20.1853,216.22,216.13,8.12875057]
[1731785314839,20.1853,216.22,216.14,8.12875057]
[1731785315625,20.1853,216.22,216.13,8.12875057]
[1731785316434,20.1853,216.22,216.11,8.12875057]
[1731785317155,4.6253,216.2,216.11,8.12875057]
[1731785317456,4.6253,216.2,216.09,8.12875057]
[1731785318440,184.676884,216.19,216.03,35.22225871]
[1731785318623,184.676884,216.19,216.08,8.12875057]
[1731785319629,4.6257,216.18,216.08,8.12875057]
[1731785320041,4.6257,216.18,216.07,12.75675057]
[1731785320252,4.6257,216.18,216.03,6.3551]
[1731785320423,165.5257,216.18,216.06,8.12875057]
[1731785320940,23.776884,216.17,216.06,8.12875057]
[1731785321257,7.2585064,216.16,216.08,8.12875057]
[1731785321546,4.6264,216.15,216.08,12.75655057]
[1731785322747,4.6264,216.15,216.07,8.12875057]
[1731785323859,15.3547,216.14,216.01,15.8615]
[1731785324059,15.3547,216.14,215.98,7.32335376]
[1731785324060,15.3547,216.14,216.02,8.12875057]
[1731785324850,6.5839,216.13,215.99,4.6298]
[1731785325056,6.5839,216.13,216.01,8.12875057]
[1731785325931,4.627,216.12,216.01,8.12875057]
[1731785326130,4.627,216.12,216.01,12.75805057]
[1731785326527,4.627,216.12,216.01,4.6293]
[1731785326851,160.9,216.11,216.0,8.12875057]
[1731785328026,4.6274,216.1,216.0,8.12875057]
[1731785328437,165.5274,216.1,216.0,8.12875057]
[1731785329657,165.5274,216.1,216.0,12.75825057]
[1731785330640,165.5274,216.1,216.0,8.12875057]
[1731785331737,165.5274,216.1,216.0,12.75815057]
[1731785332042,4.6274,216.1,216.0,12.75815057]
[1731785332462,4.6274,216.1,215.98,8.12875057]
[1731785332758,15.3547,216.09,215.98,8.12875057]
[1731785332959,176.2547,216.09,215.97,8.12875057]
[1731785334372,176.2547,216.09,215.94,28.407784]
[1731785334373,203.9747,216.09,215.94,23.776884]
[1731785334663,39.131584,216.07,215.92,8.12875057]
[1731785334842,160.9,216.06,215.92,8.12875057]
[1731785335869,4.6285,216.05,215.96,8.12875057]
[1731785336179,4.6285,216.05,215.98,8.12875057]
[1731785336363,4.6285,216.05,215.97,8.12875057]
[1731785337448,4.6285,216.05,215.96,12.75915057]
[1731785338241,4.6285,216.05,215.96,4.6304]
[1731785339660,4.6285,216.05,215.96,12.75915057]
[1731785341068,4.6285,216.05,215.96,8.12875057]
[1731785341860,4.6283,216.06,215.97,8.12875057]
[1731785343569,4.6283,216.06,215.97,12.75895057]
[1731785344369,4.6283,216.06,215.94,23.776884]
[1731785344547,4.6283,216.06,215.95,12.75925057]
[1731785345676,4.6283,216.06,215.96,8.12875057]
[1731785346456,4.6283,216.06,215.99,8.12875057]
[1731785347662,4.6283,216.06,215.99,12.75855057]
[1731785348360,4.6283,216.06,215.99,8.12875057]
[1731785349177,15.3547,216.07,216.02,8.12875057]
[1731785350972,19.9828,216.07,216.02,8.12875057]
[1731785351201,19.9828,216.07,216.01,8.12875057]
[1731785355876,19.9828,216.07,215.99,8.12875057]
[1731785356078,19.9828,216.07,215.96,23.776884]
[1731785356249,19.9828,216.07,215.99,8.12875057]
[1731785356778,19.9828,216.07,216.01,8.12875057]
[1731785357382,19.9828,216.07,216.01,12.75805057]
[1731785360566,19.9828,216.07,216.01,8.12875057]
[1731785360875,19.9828,216.07,215.99,8.12875057]
[1731785362177,19.9828,216.07,215.94,43.776884]
[1731785362370,19.9828,216.07,215.98,8.12875057]
[1731785363774,19.9828,216.07,215.98,12.75865057]
[1731785363981,19.9828,216.07,215.99,8.12875057]
[1731785364576,19.9828,216.07,216.0,8.12875057]
[1731785369689,19.9828,216.07,215.94,20.0]
[1731785369871,19.9828,216.07,215.99,8.12875057]
[1731785370871,43.776884,215.96,215.85,5.70553306]
[1731785371073,43.776884,215.94,215.8,4.6337]
[1731785371274,15.2512,215.95,215.85,15.34815091]
[1731785371481,15.2512,215.95,215.85,8.12875057]
[1731785371882,15.2512,215.95,215.87,8.12875057]
[1731785372492,4.6309,215.94,215.87,8.12875057]
[1731785374997,15.2512,215.95,215.9,8.12875057]
[1731785376887,15.2512,215.95,215.87,4.6322]
[1731785377090,19.8819,215.95,215.88,8.12875057]
[1731785378294,19.8819,215.95,215.89,8.12875057]
[1731785381501,19.8819,215.95,215.85,7.22020337]
[1731785381502,15.2512,215.95,215.91,8.12875057]
[1731785381873,15.2512,215.95,215.92,8.12875057]
[1731785382074,10.9536,215.98,215.92,8.12875057]
[1731785382985,10.9536,215.98,215.86,4.6326]
[1731785382986,10.9536,215.98,215.93,8.12875057]
[1731785383187,10.9536,215.98,215.92,8.12875057]
[1731785384193,10.9536,215.98,215.91,8.12875057]
[1731785385673,10.9536,215.98,215.91,12.76025057]
[1731785387696,10.9536,215.98,215.9,8.12875057]
[1731785387903,10.9536,215.98,215.85,0.1]
[1731785388085,16.5389,216.0,215.94,8.12875057]
[1731785388278,21.1685,216.0,215.94,8.12875057]
[1731785388492,21.1685,216.0,215.85,30.89590561]
[1731785388493,21.1685,216.0,215.92,8.12875057]
[1731785389300,21.1685,216.0,215.92,12.75985057]
[1731785391010,21.1685,216.0,215.94,8.12875057]
[1731785391306,16.5389,216.0,215.94,8.12875057]
[1731785392303,16.5389,216.0,215.88,0.1]
[1731785392499,16.5389,216.0,215.95,8.12875057]
[1731785393891,16.5389,216.0,215.95,12.75935057]
[1731785394499,16.5389,216.0,215.95,4.6306]
[1731785396235,16.5389,216.0,215.92,8.12875057]
[1731785399796,21.1685,216.0,215.9,8.12875057]
[1731785400606,21.1685,216.0,215.88,4.6322]
[1731785400912,21.1685,216.0,215.89,8.12875057]
[1731785401686,21.1685,216.0,215.9,4.6317]
[1731785403089,23.776884,215.99,215.82,29.62411682]
[1731785403288,23.776884,215.99,215.82,4.6334]
[1731785403487,23.776884,215.99,215.86,8.12875057]
[1731785404210,23.776884,215.99,215.82,24.6334]
[1731785404391,23.776884,215.99,215.84,8.12875057]
[1731785404901,6.474,215.98,215.84,8.12875057]
[1731785405215,4.6304,215.96,215.85,4.6328]
[1731785405396,23.776884,215.95,215.85,4.6328]
[1731785406303,4.6309,215.94,215.85,4.6328]
[1731785407097,16.1322,215.93,215.85,4.6328]
[1731785407505,16.1322,215.93,215.85,12.76155057]
[1731785407898,20.7634,215.93,215.84,8.12875057]
[1731785408518,16.1322,215.93,215.87,8.12875057]
[1731785408695,16.1322,215.93,215.88,8.12875057]
[1731785408896,16.1322,215.93,215.87,8.12875057]
[1731785409823,16.1322,215.93,215.88,4.6322]
[1731785410312,16.1322,215.93,215.91,8.12875057]
[1731785410515,6.474,215.98,215.91,8.12875057]
[1731785411919,6.474,215.98,215.92,4.6313]
[1731785414194,11.1041,215.98,215.92,4.6313]
[1731785414611,11.1041,215.98,215.89,8.12875057]
[1731785415119,11.1041,215.98,215.9,4.6317]
[1731785415506,11.1041,215.98,215.9,12.76045057]
[1731785415714,23.776884,215.98,215.92,8.12875057]
[1731785415904,16.1322,215.99,215.92,8.12875057]
[1731785416097,16.1322,215.99,215.9,4.6317]
[1731785416098,16.1322,215.99,215.94,8.12875057]
[1731785416411,16.1322,215.99,215.93,8.12875057]
[1731785417029,16.1322,215.99,215.94,4.6309]
[1731785420429,4.6292,216.02,215.94,4.6309]
[1731785422433,13.64354414,216.03,215.96,8.12875057]
[1731785422611,13.64354414,216.03,215.97,8.12875057]
[1731785422612,4.629,216.03,215.97,8.12875057]
[1731785423017,20.7246,216.04,215.97,8.12875057]
[1731785424111,20.7246,216.04,215.97,12.75895057]
[1731785424535,20.7246,216.04,215.97,4.6302]
[1731785425312,27.95514414,216.04,215.97,4.6302]
[1731785426349,20.7246,216.04,215.97,4.6302]
[1731785427232,7.23054414,216.06,216.01,8.12875057]
[1731785427437,7.23054414,216.07,216.01,8.12875057]
[1731785427637,7.23054414,216.08,216.01,8.12875057]
[1731785427938,11.85824414,216.09,216.03,8.12875057]
[1731785428328,7.23054414,216.1,216.05,8.12875057]
[1731785428513,11.85804414,216.1,216.05,8.12875057]
[1731785429232,7.23054414,216.11,216.05,8.12875057]
[1731785430839,11.85784414,216.11,216.05,8.12875057]
[1731785431340,11.85754414,216.12,216.07,8.12875057]
[1731785431719,11.85754414,216.12,216.05,4.6284]
[1731785431720,7.23054414,216.14,216.09,8.12875057]
[1731785432037,7.23054414,216.15,216.1,8.12875057]
[1731785432251,7.23054414,216.15,216.08,8.12875057]
[1731785433324,4.6265,216.15,216.08,8.12875057]
[1731785434947,31.00742814,216.14,216.0,6.0614]
[1731785435122,23.776884,216.11,216.0,14.19015057]
[1731785435439,31.00742814,216.11,215.99,24.75625057]
[1731785435838,23.776884,216.11,215.99,24.75625057]
[1731785436339,23.776884,216.09,215.99,24.75625057]
[1731785437423,23.776884,216.1,215.99,24.75625057]
[1731785437733,28.404284,216.1,215.99,16.6275]
[1731785438035,23.776884,216.08,215.96,8.12875057]
[1731785438631,23.776884,216.08,215.96,12.75905057]
[1731785439031,23.776884,216.06,215.96,4.6303]
[1731785440137,28.404984,216.07,215.96,4.6303]
[1731785441326,35.63552814,216.07,215.96,4.6303]
[1731785441526,28.404984,216.07,215.96,4.6303]
[1731785445248,8.14548854,216.03,215.96,4.6303]
[1731785445549,12.77448854,216.03,215.96,4.6303]
[1731785446736,8.14548854,216.01,215.96,4.6303]
[1731785446932,8.14548854,216.01,215.95,8.14548854]
[1731785447139,8.14548854,216.01,215.94,4.6307]
[1731785447643,8.14548854,216.01,215.93,8.14548854]
[1731785447851,8.14548854,215.99,215.92,4.6311]
[1731785448038,8.14548854,215.99,215.92,12.77658854]
[1731785448238,8.14548854,216.0,215.92,12.77658854]
[1731785448838,8.14548854,215.99,215.92,12.77658854]
[1731785451052,12.77538854,215.99,215.92,12.77658854]
[1731785451253,12.77538854,215.99,215.92,4.6311]
[1731785452144,8.14548854,215.98,215.92,4.6311]
[1731785453141,23.776884,216.01,215.92,12.77658854]
[1731785453445,8.14548854,215.99,215.92,12.77658854]
[1731785454154,177.2611,216.03,215.92,12.77658854]
[1731785454155,4.6292,216.02,215.92,12.77658854]
[1731785454366,8.14548854,216.0,215.92,12.77658854]
[1731785454949,4.6292,216.02,215.94,8.14548854]
[1731785455151,4.6292,216.02,215.96,8.14548854]
[1731785455451,4.6292,216.02,215.95,8.14548854]
[1731785456229,4.6292,216.02,215.95,12.77608854]
[1731785456442,12.77468854,216.02,215.95,4.6306]
[1731785457053,8.14548854,216.01,215.95,4.6306]
[1731785457352,8.14548854,215.98,215.9,6.5527]
[1731785457558,8.14548854,215.97,215.91,4.6314]
[1731785459554,12.77588854,215.97,215.91,4.6314]
[1731785459951,8.14548854,215.95,215.9,4.6317]
[1731785460542,12.77588854,215.97,215.9,4.6317]
[1731785461051,12.77588854,215.97,215.88,8.14548854]
[1731785461247,12.77588854,215.97,215.9,8.14548854]
[1731785462365,12.77588854,215.97,215.9,12.77698854]
[1731785464053,12.77588854,215.97,215.85,7.20226019]
[1731785464054,12.77588854,215.97,215.89,8.14548854]
[1731785464264,8.14548854,215.96,215.88,8.14548854]
[1731785464459,8.14548854,215.96,215.89,8.14548854]
[1731785465158,12.77588854,215.97,215.9,12.77698854]
[1731785466542,12.77588854,215.97,215.9,8.14548854]
[1731785467551,4.6298,215.99,215.9,12.77698854]
[1731785467752,12.77528854,215.99,215.9,12.77698854]
[1731785468147,4.6298,215.99,215.9,12.77698854]
[1731785468349,4.6298,215.99,215.92,8.14548854]
[1731785468668,12.77508854,216.0,215.92,8.14548854]
[1731785469344,8.14548854,215.98,215.9,12.77698854]
[1731785469561,8.14548854,215.98,215.9,8.14548854]
[1731785469767,4.6302,215.97,215.9,8.14548854]
[1731785470651,4.6302,215.97,215.91,12.77688854]
[1731785470864,4.6302,215.97,215.92,8.14548854]
[1731785471969,12.77548854,215.99,215.92,12.77678854]
[1731785473954,8.14548854,216.01,215.92,12.77678854]
[1731785475048,8.14548854,216.01,215.92,8.14548854]
[1731785475283,4.6296,216.0,215.92,8.14548854]
[1731785475568,4.6293,216.02,215.96,8.14548854]
[1731785475770,16.3611,216.03,215.98,8.14548854]
[1731785476072,16.3611,216.03,215.93,32.58195416]
[1731785476073,29.17834414,216.08,216.02,8.14548854]
[1731785476261,29.17834414,216.08,215.93,32.78195416]
[1731785476262,20.3147,216.08,216.03,8.14548854]
[1731785476651,20.3147,216.08,216.02,8.14548854]
[1731785477659,28.46018854,216.08,216.01,12.77478854]
[1731785478260,28.46018854,216.08,215.93,0.1]
[1731785478465,28.46018854,216.08,216.0,8.14548854]
[1731785478975,20.3147,216.08,216.03,8.14548854]
[1731785479373,20.3147,216.08,216.02,8.14548854]
[1731785480477,7.23054414,216.11,216.06,8.14548854]
[1731785480654,7.23054414,216.11,216.07,8.14548854]
[1731785480976,27.10614414,216.13,216.07,8.14548854]
[1731785481361,19.8756,216.13,216.07,8.14548854]
[1731785482158,19.8756,216.13,215.99,22.8399]
[1731785482159,8.14548854,216.09,215.99,22.8399]
[1731785482375,8.14548854,216.09,215.93,129.38195416]
[1731785482376,8.14548854,216.07,215.95,20.0]
[1731785482589,8.14548854,216.06,215.94,22.8399]
[1731785482758,8.14548854,216.06,215.98,8.14548854]
[1731785483459,8.14548854,216.05,215.98,8.14548854]
[1731785483865,8.14548854,216.06,215.98,12.77548854]
[1731785484068,8.14548854,216.06,215.99,8.14548854]
[1731785484268,8.14548854,216.07,215.99,8.14548854]
[1731785484574,4.6279,216.08,215.99,8.14548854]
[1731785484575,8.14548854,216.06,215.99,8.14548854]
[1731785484781,8.14548854,216.06,215.98,8.14548854]
[1731785484968,3.61140445,216.06,215.98,8.14548854]
[1731785485154,8.14548854,216.06,215.98,8.14548854]
[1731785485350,8.14548854,216.04,215.96,4.6304]
[1731785485568,8.14548854,216.04,215.96,12.77588854]
[1731785486381,4.6289,216.03,215.96,8.14548854]
[1731785487662,4.6289,216.03,215.96,12.77588854]
[1731785488482,8.14548854,216.02,215.94,8.14548854]
[1731785489472,4.6294,216.01,215.94,8.14548854]
[1731785489681,4.6294,216.01,215.94,12.77628854]
[1731785492477,4.6294,216.01,215.96,8.14548854]
[1731785492667,184.29418854,216.05,215.96,8.14548854]
[1731785492870,180.7774,216.05,215.98,8.14548854]
[1731785494175,188.92288854,216.05,215.98,12.77548854]
[1731785494374,8.14548854,216.03,215.92,20.0]
[1731785494577,8.14548854,216.03,215.94,8.14548854]
[1731785495270,8.14548854,216.03,215.9,4.6317]
[1731785495583,8.14548854,216.03,215.95,8.14548854]
[1731785495789,188.92288854,216.05,215.97,8.14548854]
[1731785495992,180.7774,216.05,215.99,8.14548854]
[1731785496286,19.8774,216.05,215.99,8.14548854]
[1731785496477,7.23054414,216.07,216.04,8.14548854]
[1731785496783,4.6277,216.09,216.04,8.14548854]
[1731785497693,12.77318854,216.09,216.02,8.14548854]
[1731785497900,12.77318854,216.09,216.0,12.77488854]
[1731785498080,4.6277,216.09,216.02,8.14548854]
[1731785498396,4.6277,216.09,216.04,8.14548854]
[1731785498697,12.77318854,216.09,216.02,8.14548854]
[1731785498875,17.34823644,216.09,216.01,12.72053644]
[1731785499601,4.6277,216.09,216.03,12.72053644]
[1731785502805,4.6274,216.11,216.06,12.72053644]
[1731785503208,172.75754414,216.13,216.08,12.72053644]
[1731785503411,4.627,216.13,216.08,12.72053644]
[1731785504495,4.627,216.13,216.07,17.34853644]
[1731785505694,4.627,216.13,216.07,12.71303258]
[1731785507995,7.23054414,216.15,216.07,12.71303258]
[1731785508199,11.85694414,216.15,216.07,17.34113258]
[1731785508510,4.6264,216.15,216.07,17.34113258]
[1731785509387,4.6264,216.15,216.07,12.71303258]
[1731785510401,23.776884,216.14,216.05,12.71303258]
[1731785511099,11.85694414,216.15,216.05,12.71303258]
[1731785511491,4.6264,216.15,216.06,4.6283]
[1731785515702,4.6264,216.15,216.04,4.6287]
[1731785516010,23.776884,216.14,216.03,12.71303258]
[1731785516518,31.00742814,216.14,216.01,12.71303258]
[1731785516806,23.776884,216.12,216.01,12.71303258]
[1731785517012,4.6272,216.11,216.01,17.34233258]
[1731785517219,23.776884,216.1,215.99,12.71303258]
[1731785517718,31.00742814,216.1,215.99,12.71303258]
[1731785518015,23.776884,216.1,215.99,12.71303258]
[1731785518320,4.6277,216.09,216.0,4.6296]
[1731785520824,39.884184,216.08,215.94,4.6309]
[1731785521001,23.776884,216.06,215.94,12.77313459]
[1731785521192,23.776884,216.06,215.96,8.14223459]
[1731785521510,160.9,216.07,216.01,8.14223459]
[1731785521715,16.1073,216.08,216.0,8.14223459]
[1731785522801,20.7354,216.08,216.0,12.77163459]
[1731785524124,20.7354,216.08,215.94,24.6309]
[1731785524294,20.7354,216.08,216.01,8.14223459]
[1731785525717,27.96594414,216.08,216.01,8.14223459]
[1731785528405,27.96594414,216.08,215.99,8.14223459]
[1731785528915,7.23054414,216.07,215.99,8.14223459]
[1731785529322,27.96594414,216.08,215.99,8.14223459]
[1731785529820,7.23054414,216.07,215.98,4.6299]
[1731785530508,4.6283,216.06,215.98,4.6299]
[1731785530711,11.85884414,216.06,215.98,4.6299]
[1731785530910,4.6283,216.06,215.98,4.6299]
[1731785532925,4.6283,216.06,215.99,8.14223459]
[1731785534000,7.23054414,216.07,215.99,8.14223459]
[1731785534214,11.85864414,216.07,215.99,8.14223459]
[1731785534414,7.23054414,216.07,215.99,8.14223459]
[1731785534700,188.86574414,216.08,216.0,4.6296]
[1731785534994,172.75844414,216.08,216.01,8.14223459]
[1731785535620,172.75844414,216.08,216.0,4.6296]
[1731785535621,7.23054414,216.09,216.05,8.14223459]
[1731785535803,7.23054414,216.11,216.06,8.14223459]
[1731785536003,15.8118,216.12,216.08,8.14223459]
[1731785536004,7.23054414,216.12,216.08,8.14223459]
[1731785536199,7.23054414,216.12,216.09,8.14223459]
[1731785536418,7.23054414,216.13,216.09,8.14223459]
[1731785536821,7.23054414,216.13,216.04,32.56893836]
[1731785536822,7.23054414,216.14,216.11,8.14223459]
[1731785537030,7.23054414,216.15,216.11,8.14223459]
[1731785537210,7.23054414,216.16,216.11,8.14223459]
[1731785537721,14.46108829,216.17,216.11,8.14223459]
[1731785537722,7.23054414,216.17,216.11,8.14223459]
[1731785539137,7.23054414,216.17,216.12,8.14223459]
[1731785539518,11.85634414,216.18,216.13,8.14223459]
[1731785540627,7.23054414,216.19,216.14,8.14223459]
[1731785540816,7.23054414,216.19,216.15,8.14223459]
[1731785542504,7.23054414,216.19,216.14,8.14223459]
[1731785543310,7.23054414,216.19,216.06,0.1]
[1731785543311,7.23054414,216.19,216.17,8.14223459]
[1731785543714,7.23054414,216.2,216.17,8.14223459]
[1731785543914,7.23054414,216.21,216.17,8.14223459]
[1731785544326,11.85564414,216.21,216.16,8.14223459]
[1731785544511,7.23054414,216.2,216.14,8.14223459]
[1731785544712,7.23054414,216.2,216.13,8.14223459]
[1731785545029,11.85594414,216.2,216.13,12.76903459]
[1731785546412,11.35594414,216.2,216.13,12.76903459]
[1731785546728,11.35594414,216.2,216.14,8.14223459]
[1731785546918,4.6254,216.2,216.14,8.14223459]
[1731785548527,4.6254,216.2,216.09,22.9529]
[1731785548528,4.6254,216.2,216.11,4.6272]
[1731785548835,19.08648829,216.2,216.1,4.6274]
[1731785549010,19.08648829,216.2,216.1,12.76963459]
[1731785549336,19.08648829,216.2,216.11,8.14223459]
[1731785549855,19.08648829,216.2,216.1,12.76963459]
[1731785550328,19.08648829,216.2,216.11,8.14223459]
[1731785556534,19.08648829,216.2,216.14,8.14223459]
[1731785556730,4.6254,216.2,216.14,8.14223459]
[1731785556929,4.6254,216.2,216.16,8.14223459]
[1731785557833,14.46108829,216.21,216.16,8.14223459]
[1731785558011,4.625,216.22,216.16,12.76833459]
[1731785559621,4.625,216.22,216.16,8.14223459]
[1731785560430,4.625,216.22,216.14,12.76863459]
[1731785560631,4.625,216.22,216.14,8.14223459]
[1731785561236,19.08608829,216.22,216.14,8.14223459]
[1731785561744,4.625,216.22,216.15,8.14223459]
[1731785562926,19.08578829,216.23,216.17,8.14223459]
[1731785563126,4.6247,216.23,216.17,8.14223459]
[1731785563751,4.6247,216.23,216.16,8.14223459]
[1731785564243,4.6247,216.23,216.1,4.6274]
[1731785564443,4.6247,216.23,216.15,8.14223459]
[1731785564846,4.6247,216.23,216.16,8.14223459]
[1731785565042,4.6247,216.23,216.16,12.76843459]
[1731785565743,4.6247,216.23,216.17,8.14223459]
[1731785566257,4.6247,216.23,216.18,8.14223459]
[1731785567350,4.6242,216.25,216.18,8.14223459]
[1731785567527,4.6242,216.25,216.18,12.76793459]
[1731785567846,21.2134,216.27,216.2,8.14223459]
[1731785568653,21.2134,216.27,216.21,8.14223459]
[1731785569360,16.5894,216.27,216.22,8.14223459]
[1731785569527,4.6236,216.28,216.23,8.14223459]
[1731785570433,22.2917,216.32,216.23,8.14223459]
[1731785570646,4.6229,216.31,216.23,8.14223459]
[1731785570852,4.6229,216.31,216.24,8.14223459]
[1731785571152,22.2917,216.32,216.26,8.14223459]
[1731785571153,16.2784,216.32,216.26,8.14223459]
[1731785571356,4.6226,216.33,216.28,8.14223459]
[1731785571930,4.6226,216.33,216.22,20.0]
[1731785572124,4.6226,216.33,216.27,8.14223459]
[1731785572352,4.6219,216.36,216.27,8.14223459]
[1731785573058,4.6219,216.36,216.26,4.6239]
[1731785573258,4.6219,216.36,216.26,12.76613459]
[1731785574758,4.6219,216.36,216.2,20.0]
[1731785574944,23.776884,216.35,216.24,8.14223459]
[1731785575262,23.776884,216.35,216.23,8.14223459]
[1731785575953,191.53778829,216.36,216.24,8.14223459]
[1731785576754,177.0767,216.36,216.24,8.14223459]
[1731785576968,177.0767,216.36,216.24,12.76663459]
[1731785577744,204.8367,216.36,216.24,12.76663459]
[1731785577944,160.9,216.35,216.18,20.0]
[1731785578156,160.9,216.35,216.23,8.14223459]
[1731785578558,160.9,216.35,216.22,8.14223459]
[1731785578957,15.4367,216.33,216.19,12.76773459]
[1731785579375,15.4367,216.33,216.21,8.14223459]
[1731785580146,4.6227,216.32,216.2,8.14223459]
[1731785580943,4.6227,216.32,216.21,8.14223459]
[1731785581148,4.6227,216.32,216.22,4.6249]
[1731785582062,4.6227,216.32,216.22,12.76713459]
[1731785583347,4.6227,216.32,216.22,8.14223459]
[1731785585352,4.6227,216.32,216.22,4.6249]
[1731785586378,4.6227,216.32,216.18,20.0]
[1731785586379,19.08378829,216.32,216.2,8.14223459]
[1731785586769,30.64068829,216.32,216.16,20.0]
[1731785587078,15.4367,216.3,216.16,8.14223459]
[1731785587265,176.3367,216.3,216.16,8.14223459]
[1731785587467,190.79778829,216.3,216.16,8.14223459]
[1731785587953,177.0819,216.29,216.12,21.5304]
[1731785588160,15.4367,216.27,216.13,12.76903459]
[1731785588981,29.89778829,216.27,216.13,8.14223459]
[1731785589154,4.624,216.26,216.13,8.14223459]
[1731785590361,4.624,216.26,216.14,4.6266]
[1731785592782,4.6244,216.24,216.14,4.6266]
[1731785594766,4.6244,216.24,216.11,8.14223459]
[1731785595072,4.6244,216.24,216.12,20.0]
[1731785595389,23.776884,216.23,216.11,8.14223459]
[1731785596485,4.6249,216.22,216.11,8.14223459]
[1731785597084,15.6697,216.21,216.11,8.14223459]
[1731785597794,20.2948,216.21,216.11,8.14223459]
[1731785598091,20.2948,216.21,216.08,20.0]
[1731785598266,20.2948,216.21,216.11,20.0]
[1731785598691,20.2948,216.21,216.1,8.14223459]
[1731785600897,23.776884,216.2,216.1,8.14223459]
[1731785601193,4.6255,216.19,216.05,20.0]
[1731785601395,4.6255,216.19,216.1,8.14223459]
[1731785602372,4.6253,216.2,216.1,8.14223459]
[1731785605177,23.776884,216.2,216.12,8.14223459]
[1731785605377,15.6697,216.21,216.06,23.876884]
[1731785605576,15.6697,216.21,216.09,20.0]
[1731785605769,15.6697,216.21,216.14,8.14223459]
[1731785606168,15.6697,216.21,216.16,8.14223459]
[1731785606369,15.6697,216.21,216.18,8.14223459]
[1731785606567,6.155,216.25,216.2,8.14223459]
[1731785607205,6.155,216.25,216.18,8.14223459]
[1731785607901,6.155,216.25,216.11,43.976884]
[1731785608196,6.155,216.25,216.18,8.14223459]
[1731785609388,6.155,216.25,216.11,43.776884]
[1731785609596,10.7793,216.25,216.14,8.14223459]
[1731785610497,10.7793,216.25,216.13,8.14223459]
[1731785611299,25.24038829,216.25,216.13,8.14223459]
[1731785612915,4.6247,216.23,216.13,8.14223459]
[1731785614022,4.6244,216.24,216.15,8.14223459]
[1731785614323,14.46108829,216.24,216.17,8.14223459]
[1731785615895,14.46108829,216.24,216.12,43.776884]
[1731785616102,14.46108829,216.24,216.17,8.14223459]
[1731785617816,14.46108829,216.24,216.12,43.776884]
[1731785618202,14.46108829,216.24,216.17,8.14223459]
[1731785619915,10.7792,216.25,216.17,8.14223459]
[1731785624002,10.7792,216.25,216.12,20.0]
[1731785624199,10.7792,216.25,216.17,8.14223459]
[1731785629320,14.46108829,216.24,216.12,8.14223459]
[1731785629507,16.3961,216.22,216.11,8.14223459]
[1731785629706,30.85718829,216.22,216.11,8.14223459]
[1731785630107,14.46108829,216.21,216.11,8.14223459]
[1731785630737,14.46108829,216.21,216.09,8.14223459]
[1731785631032,23.776884,216.2,216.09,8.14223459]
[1731785631229,4.6255,216.19,216.09,8.14223459]
[1731785633038,179.98628829,216.21,216.11,8.14223459]
[1731785633238,179.98628829,216.21,216.13,8.14223459]
[1731785633433,160.9,216.21,216.14,8.14223459]